Cogmind - Beta 15 @@@ ROGUE MODE // 2025.06.08 @ 10:47:29 Player: Caricature Result: Destroyed by S-10 Pest with Light Assault Rifle Performance ------------- Evolutions (0) 0 Regions Visited (2) 400 Robots Destroyed (12) 60 Value Destroyed (201) 201 Prototype IDs (2) 40 Alien Tech Used (0) 0 Bonus (0) 0 TOTAL SCORE: 701 Bonus ------- None Cogmind --------- Core Integrity 0/250 Matter 300/300 Energy 250/250 System Corruption 1% Temperature Cool (0) Movement Walking (120) Location -10/Mines Parts ------- > --- POWER (1) -------- Ion Engine > --- PROPULSION (2) --- Aluminum Leg Aluminum Leg > --- UTILITY (2) ------ (None) > --- WEAPON (2) ------- Small Laser Mining Claw > --- INVENTORY (5) ---- Light Ion Engine Compact Wheel Compact Wheel Flight Unit Small Matter Pod (50) Peak State ------------ > --- POWER ------------ Ion Engine > --- PROPULSION ------- Aluminum Leg Aluminum Leg > --- UTILITY ---------- Small Storage Unit Seismic Detector > --- WEAPON ----------- EM Pulse Gun Light Assault Rifle > --- INVENTORY -------- Light Ion Engine Light Ion Engine Compact Wheel Compact Wheel Small Matter Pod Small Laser Mining Laser [Rating: 7] Favorites ----------- Power Ion Engine Engine Ion Engine Propulsion Aluminum Leg Leg Aluminum Leg Utility Small Storage Unit Device Seismic Detector Storage Small Storage Unit Weapon EM Pulse Gun Energy Gun EM Pulse Gun Ballistic Gun Light Assault Rifle Special Weapon Mining Laser Slashing Weapon Mining Claw Build | -11 -10 -10 ------- Run | Yrd Mat Min Slots Evolved . | . . . Power . | . . . Propulsion . | . . . Utility . | . . . Weapon . | . . . Parts Attached 15 | 7 8 . Power 2 | 1 1 . Engine 2 | 1 1 . Core . | . . . Reactor . | . . . Propulsion 4 | 2 2 . Treads . | . . . Leg 4 | 2 2 . Wheel . | . . . Hover . | . . . Flight . | . . . Utility 2 | 2 . . Device 1 | 1 . . Storage 1 | 1 . . Processor . | . . . Hackware . | . . . Protection . | . . . Artifact . | . . . Weapon 7 | 2 5 . Energy Gun 3 | 1 2 . Energy Cannon . | . . . Ballistic Gun 1 | 1 . . Ballistic Cannon . | . . . Launcher . | . . . Special Weapon 2 | . 2 . Impact Weapon . | . . . Slashing Weapon 1 | . 1 . Piercing Weapon . | . . . Special Melee Weapon . | . . . Unidentified Prototypes . | . . . Corrupted Parts 1 | . 1 . System Corruption 1 | . 1 . Parts Lost 8 | . 8 . Power 1 | . 1 . Propulsion 2 | . 2 . Utility 1 | . 1 . Weapon 4 | . 4 . Highest Loss Streak 5 | . 5 . To Critical Strikes . | . . . Average Backups 5 | 5 5 5 Power 1 | 1 1 1 Propulsion 2 | 1 2 3 Utility . | . 1 1 Weapon . | 1 . . Tool/Special . | . . . Unused Backups 6 | . 1 5 Power 2 | . 1 1 Propulsion 3 | . . 3 Utility 1 | . . 1 Weapon . | . . . Tool/Special . | . . . Average Slot Usage (%) 71 | . 71 71 Engine 13 | . 12 14 Leg 24 | . 23 28 Device 2 | . 2 . Storage 4 | . 5 . Energy Gun 13 | . 13 14 Ballistic Gun 1 | . 1 . Slashing Weapon 10 | . 9 14 Peak Build Rating 7 | 7 7 5 Average Rating 5 | 5 4 5 On Entrance 4 | . 7 5 Naked Turns . | . . . Heaviest Build 14 | 14 14 8 Greatest Support 20 | 20 20 20 Greatest Overweight (x) 4 | 4 1 . Average Overweight (x) . | . . . Largest Inventory Capacity 8 | 8 8 5 Average Capacity 6 | 7 6 5 Most Carried 8 | 8 8 5 Average Carried 5 | 5 5 5 Final Capacity 8 | 8 5 5 Final Carried 8 | 8 5 5 Class Distribution -------------------- 69% | Mutant 30% | Scavenger-Mutant Dominant Class ---------------- Scavenger-Mutant | -10/Materials Scavenger-Mutant | -10/Mines Resources | -11 -10 -10 ----------- Run | Yrd Mat Min Matter Collected 365 | 319 46 . Remotely . | . . . Salvage Created 354 | 215 139 . Parts 31 | 19 12 . Haulers Intercepted . | . . . Recyclers Shooed . | . . . Parts Field Recycled . | . . . Retrieved Matter . | . . . Parts Self-Destructed . | . . . Prevented . | . . . Kills | -11 -10 -10 ------- Run | Yrd Mat Min Combat Hostiles Destroyed 4 | . 4 . Melee 3 | . 3 . Cannons 1 | . 1 . Classes Destroyed 5 | 3 2 . Worker 2 | 2 . . Tunneler 4 | 4 . . Recycler 1 | 1 . . Operator 1 | . 1 . Grunt 4 | . 4 . Best Kill Streak 3 | 3 2 . Combat Bots Only 2 | . 2 . Max Kills in Single Turn 1 | 1 1 . Gunslinging . | . . . Exploded . | . . . Melee 1 | . 1 . Uniques/NPCs Destroyed . | . . . Combat | -11 -10 -10 -------- Run | Yrd Mat Min Hostile Shots Fired 103 | . 97 6 Missed 31 | . 28 3 Hits 72 | . 69 3 Projectile 72 | . 69 3 Critical Strikes 2 | . 2 . Damage Taken 920 | . 899 21 Core 253 | . 246 7 Absorbed by Shields . | . . . Core Remaining (%) 100 | 100 . . Volleys Fired 39 | 24 14 1 Largest 2 | 2 2 1 Hottest 100 | 60 100 40 Shots Fired 64 | 48 15 1 Gun 60 | 48 11 1 Cannon . | . . . Launcher . | . . . Special 4 | . 4 . Kinetic 25 | 24 1 . Thermal 14 | . 13 1 Explosive . | . . . Electromagnetic 25 | 24 1 . Robot Hit Streak 5 | 5 5 . Robot Miss Streak 4 | 4 2 1 Penetration Max . | . . . Secondary Targets . | . . . Shots Hit Robots 46 | 24 21 1 Core Hits 17 | 10 7 . Critical Kills . | . . . Critical Parts Destroyed . | . . . Critical Strikes 1 | 1 . . Corrupt 1 | 1 . . Melee Attacks 19 | . 18 1 Impact . | . . . Slashing 19 | . 18 1 Piercing . | . . . Sneak Attacks 2 | . 1 1 Combat Hostiles . | . . . Follow-up Attacks . | . . . Damage Inflicted 738 | 273 417 48 Guns 358 | 273 85 . Cannons . | . . . Explosions . | . . . Melee 332 | . 284 48 Ramming . | . . . Kinetic 89 | 89 . . Thermal 115 | . 115 . Explosive . | . . . Electromagnetic 202 | 184 18 . Impact . | . . . Slashing 332 | . 284 48 Piercing . | . . . Highest Corruption 1 | . 1 1 Average Corruption 1 | . 1 1 Corruption Purged . | . . . Corruption Blocked . | . . . Overload Shots . | . . . Overflow Damage 8 | . . 8 Projectiles . | . . . Explosions . | . . . Melee 8 | . . 8 Knockbacks . | . . . Impact . | . . . Kinetic . | . . . Secondary . | . . . Self-Inflicted Damage . | . . . Shots . | . . . Rammed . | . . . Targets Rammed . | . . . Kicked . | . . . Crushed . | . . . Highest Temperature 295 | 40 295 . Average Temperature 89 | 14 173 . Received Heat Transfer 555 | . 555 . Effects 1 | . 1 . Interference 1 | . 1 . Siege Activations . | . . . Martial Activations . | . . . Shielding Activations . | . . . Robots Disrupted . | . . . Combat Hostiles . | . . . Robots Corrupted . | . . . Combat Hostiles . | . . . Parts Fried . | . . . Impact Corruptions . | . . . Robots Melted . | . . . Combat Hostiles . | . . . Parts Melted . | . . . Heat Transferred 250 | . 250 . Parts Sabotaged . | . . . Parts Stolen . | . . . Parts Stripped . | . . . Power Chain Reactions . | . . . Alert | -11 -10 -10 ------- Run | Yrd Mat Min Maximum Alert Level . | . . . Low Security (%) 100 | 100 100 100 Level 1 . | . . . Level 2 . | . . . Level 3 . | . . . Level 4 . | . . . Level 5 . | . . . High Security . | . . . Max Security . | . . . Peak Influence 30 | 5 30 . Initial . | . . . Average 4 | . 7 . Influence Increases 206 | 35 171 . Destroy 0b10 Robot/C 80 | . 80 . Destroy 0b10 Robot/NC 40 | 35 5 . Destroy Leader 20 | . 20 . Successful Hack 21 | . 21 . Lose Combat Pursuer 45 | . 45 . Influence Decreases 206 | 35 171 . Time Decay 145 | 35 110 . Lost Part 61 | . 61 . Squads Dispatched 3 | . 3 . Investigation 1 | . 1 . Extermination . | . . . Reinforcement 2 | . 2 . Assault . | . . . Garrison . | . . . Intercept . | . . . Searches Triggered . | . . . Construction Impeded . | . . . Haulers Reinforced . | . . . Active Scanning Responses . | . . . Cargo Convoy Interrupts . | . . . Stealth | -11 -10 -10 --------- Run | Yrd Mat Min Distress Signals 3 | . 3 . Communications Jammed . | . . . Distress Signals . | . . . Times Spotted 19 | . 16 3 Peak Tracking Total 6 | . 6 3 Tactical Retreats 2 | . 2 . Traps | -11 -10 -10 ------- Run | Yrd Mat Min Traps Triggered 1 | . 1 . Indirectly . | . . . Trap Hack Attempts . | . . . Triggered . | . . . Disarmed . | . . . Reprogrammed . | . . . Reused . | . . . Traps Extracted . | . . . Installed . | . . . Triggered . | . . . Machines | -11 -10 -10 ---------- Run | Yrd Mat Min Machines Disabled . | . . . Max in Single Turn . | . . . Machines Repaired . | . . . Machines Dismantled . | . . . Machines Sabotaged . | . . . Overloaded Fab Kills . | . . . Hacking | -11 -10 -10 --------- Run | Yrd Mat Min Machines Accessed 2 | . 2 . Terminals 2 | . 2 . Fabricators . | . . . Repair Stations . | . . . Recycling Units . | . . . Scanalyzers . | . . . Garrison Access . | . . . Total Hacks 6 | . 6 . Successful 4 | . 4 . Failed 2 | . 2 . Catastrophic . | . . . Database Lockouts . | . . . Manual 2 | . 2 . Terminals 6 | . 6 . Fabricators . | . . . Repair Stations . | . . . Recycling Units . | . . . Scanalyzers . | . . . Garrison Access . | . . . Terminal Hacks 4 | . 4 . Prototype ID Bank 1 | . 1 . Hauler Manifests 1 | . 1 . Zone Layout 2 | . 2 . Fabricator Hacks . | . . . Repair Station Hacks . | . . . Recycling Unit Hacks . | . . . Scanalyzer . | . . . Garrison Access Hacks . | . . . Unauthorized Hacks . | . . . Terminals . | . . . Fabricators . | . . . Repair Stations . | . . . Recycling Units . | . . . Scanalyzers . | . . . Garrison Access . | . . . Data Cores Recovered . | . . . Used . | . . . Hacking Detections 1 | . 1 . Full Trace Events . | . . . Feedback Events . | . . . Feedback Blocked . | . . . Robot Schematics Acquired . | . . . Robots Built . | . . . Authchips . | . . . Time . | . . . Total Robot Build Rating . | . . . Part Schematics Acquired . | . . . Parts Built . | . . . Authchips . | . . . Time . | . . . Total Part Build Rating . | . . . Parts Repaired . | . . . Time . | . . . Parts Recycled . | . . . Recycled Matter . | . . . Retrieved Matter . | . . . Retrieved Components . | . . . Parts Scanalyzed . | . . . Part Schematics Acquired . | . . . Parts Damaged . | . . . Bothacking | -11 -10 -10 ------------ Run | Yrd Mat Min Used RIF Installer . | . . . Robots Hacked . | . . . Non-combat . | . . . Combat . | . . . Robot Hacks Applied . | . . . Relay Couplers Released . | . . . Fabnet Peak Effective % . | . . . Robots Rewired . | . . . Allies Hacked . | . . . Hacks Repelled . | . . . Allies | -11 -10 -10 -------- Run | Yrd Mat Min Total Allies . | . . . Largest Group . | . . . Highest-Rated Group . | . . . Highest-Rated Ally . | . . . Total Orders . | . . . Ally Attacks . | . . . Total Damage . | . . . Kills . | . . . Allies Corrupted . | . . . Allies Melted . | . . . Intel | -11 -10 -10 ------- Run | Yrd Mat Min Active Infowar (turns) 108 | 35 73 . Seismic 108 | 35 73 . Robot Analysis Total . | . . . Derelict Logs Recovered . | . . . Drone Launches . | . . . Drone Recoveries . | . . . Exploration | -11 -10 -10 ------------- Run | Yrd Mat Min Turns Passed 744 | 342 369 33 Spaces Moved 435 | 212 200 23 Core 27 | 20 7 . Treads . | . . . Legs 408 | 192 193 23 Wheels . | . . . Hover . | . . . Flight . | . . . Fastest Speed 50 | 50 50 120 Average Speed 121 | 119 124 120 Slowest Speed 250 | 250 190 120 Overloaded Moves . | . . . Propulsion Burnouts . | . . . Robots Hopped . | . . . Potential Cave-ins . | . . . Cave-ins Triggered . | . . . Exploration Rate (%) 19 | 10 37 12 Regions Visited 2 Branch Regions 1 Pre-discovered Areas . | . . . Known Exits Taken . | . . . Unknown Exits Taken 2 | 1 1 . Scrap Searched . | . . . Spaces Dug . | . . . Terrain Destroyed . | . . . Melee . | . . . Projectile . | . . . AOE . | . . . Terrain Rammed . | . . . Walls Destroyed . | . . . Machines Disabled . | . . . Actions | -11 -10 -10 --------- Run | Yrd Mat Min Total 542 | 257 260 25 Wait 16 | . 16 . Move 433 | 211 199 23 Hop . | . . . Pick Up 17 | 15 2 . Fast Attach 4 | . 4 . Attach 11 | 7 4 . Detach . | . . . Swap . | . . . Drop 3 | . 3 . Fire 39 | 24 14 1 Melee 19 | . 18 1 Ram . | . . . Kick . | . . . Crush . | . . . Escape Stasis . | . . . Rewire . | . . . Trap . | . . . Miscellaneous . | . . . Route ------- -11/Scrapyard -10/Materials -10/Mines History --------- Turn | Location | Event 19 | -11/Scrapyard | Discovered new exit (range 16) 343 | -11/Scrapyard | Entered Materials 344 | -10/Materials | Build established: Mutant 454 | -10/Materials | Core integrity fell below 50% 461 | -10/Materials | Lost 5 parts (1n1u3w) 490 | -10/Materials | Core integrity fell below 20% 541 | -10/Materials | Lost 3 parts (1p1n1w) 701 | -10/Materials | Discovered new exit (range 8) 712 | -10/Materials | Entered Mines 745 | -10/Mines | Destroyed by S-10 Pest with Light Assault Rifle Last Messages --------------- 00694_ An alarm sounds. 00694_ ALERT: Alarm triggered, dispatching investigation squad. 00694_ U-05 Engineer lays Concrete. 00701_ EXIT=FOUND 00702_ O-16 Technician uses terminal to summon reinforcements. 00702_ ALERT: Hostiles spotted, dispatching reinforcements to Terminal M007. 00702_ O-16 Technician locks terminal. 00704_ U-05 Engineer destroyed. 00704_ R-06 Scavenger collects Terrain Scanner. LOCATION=UNKNOWN GOAL=ESCAPE Something is scanning the area. 00713_ K-01 Serf collects debris. 00714_ Sneak attack on K-01 Serf. 00714_ Destroyed Wheel. 00717_ K-01 Serf cleans the Pulverizer. 00722_ K-01 Serf collects debris. Map ----- +----------------------------------------------------+ | ?????????????????????????????????????????????? | | ?????????????????????????????????????????????? | | ?????????????????????????????????????????????? | | ?????????????????????????????????????????????? | | ?????????????????????????????????????????????? | | ?????????????????????????????????????????????? | | ?????????????????????????????????????????????? | | ??#########??????????????????????????????????? | | ??# """" #??????????????????????????????????? | | ??# """" #???###??????????##????????????????? | | ??# """" #??## ##????????? ????????????????? | | ??# #### ##??????? ?????????????????? | | ??# ##????? ??????????????????? | | ??# ### #??#?? ???????????????????? | | ??# #?# #? #? "???????????????????? | | ??#########?## ## ## """ ????????????????? | | ?????????????### t """ ????????????????? | | ???????????????## ## # """ ????????????????? | | ????????????????# ## #?????????????????????? | | ????????????????# #?????????????????????? | | ????????????????## ## ##?????????????????????? | | ?????????????????# ## #??????????????????????? | | ?????????????????# #??????????????????????? | | ?????????????????#### #??????????????????????? | | ????????????????????# #????? #???????????????? | | ???????????????????##@## #????????????????? | | ???????????????????# ss #????????????????? | | ???????????????????## s #???????????????? | | ????????????????????### ??????????? | | ???????????????????????# ?????????? | | ????????????????????????############?????????? | | ?????????????????????????????????????????????? | | ?????????????????????????????????????????????? | | ?????????????????????????????????????????????? | | ?????????????????????????????????????????????? | | | | | | | | | | | | | | | | | | | | | | | | | | | | | | | +----------------------------------------------------+ Best States ------------- Heat Dissipation 25 Energy Generation 10 Energy Capacity 250 Matter Stores 300 Matter Capacity 300 Sight Range 16 Terrain Scan Density 10 Evasion (%) 55 Item Schematics ----------------- None Robot Schematics ------------------ None Fabricated ------------ Nothing Repaired ---------- Nothing Alien Tech Used ----------------- None Achievements -------------- None Challenges ------------ None Game ------ Seed StealthOvertunedSpoofer Manual? 0 Play Time 00:19:01 Cumulative 6.6 hours Start 2025.06.08 @ 10:24:38 End 2025.06.08 @ 10:47:29 Sessions 1 Manual Loads 0 Difficulty Rogue Special Mode None Game No. 10 Rogue 10 Adventurer 0 Explorer 0 Win Type - Total 0 Types 0/0/0/0/0/0/0/0/0/0 Lore% 8 Gallery% 12 Achievement% 12 Wizard Run 0 Options --------- Layout 1 ASCII 0 Keyboard 1 Movement Vi Keybinds 0 Fullscreen 1 Font 24/Smallcaps Map View 50x35 Zoom Use 0% Tactical HUD 1 Map Filters NONE Filters NONE Steam 1 RUN: f2e9779b-be44-4bce-bdd6-b29190b5a10d